bitfinex-derivatives/quotes_BTCF0:USTF0_20210105
["timestamp","ask_amount","ask_price","bid_price","bid_amount"]
[1609853838115,0.13632608,31768.0,31766.0,0.74752608]
[1609853839916,0.59009653,31772.0,31766.0,0.13632608]
[1609853840317,0.59009653,31772.0,31771.0,3.9164]
[1609853841419,0.59009653,31772.0,31771.0,4.05272608]
[1609853842919,0.59009653,31772.0,31771.0,0.13632608]
[1609853844319,0.59009653,31772.0,31771.0,3.80182608]
[1609853844921,0.01920665,31773.0,31771.0,3.80182608]
[1609853848630,0.01920665,31773.0,31771.0,0.13632608]
[1609853848822,0.01920665,31773.0,31772.0,4.7067]
[1609853851324,0.01920665,31773.0,31771.0,0.13632608]
[1609853851524,0.01920665,31773.0,31702.0,0.1771]
[1609853851724,0.12417665,31773.0,31762.0,4.8688]
[1609853853329,0.13632608,31765.0,31764.0,0.13632608]
[1609853853729,0.13632608,31765.0,31753.0,4.8457]
[1609853854129,0.13632608,31765.0,31753.0,4.7502]
[1609853854931,0.13632608,31765.0,31746.0,0.0945]
[1609853855135,0.13632608,31765.0,31757.0,4.3448]
[1609853855333,0.13632608,31768.0,31764.0,0.13632608]
[1609853857337,0.10497,31773.0,31764.0,0.13632608]
[1609853857535,0.13632608,31774.0,31764.0,0.13632608]
[1609853857938,4.69842004,31786.0,31764.0,0.13632608]
[1609853858138,0.01912004,31786.0,31764.0,0.13632608]
[1609853859039,0.2793,31791.0,31777.0,4.9354]
[1609853859240,0.2793,31791.0,31764.0,0.13632608]
[1609853859439,0.31342608,31782.0,31781.0,0.13632608]
[1609853860540,0.13632608,31782.0,31781.0,0.13632608]
[1609853861341,0.13632608,31782.0,31781.0,0.88602608]
[1609853861742,0.13632608,31782.0,31781.0,0.13632608]
[1609853862142,0.13632608,31782.0,31773.0,4.1941]
[1609853862343,0.24672608,31782.0,31773.0,4.1941]
[1609853863442,0.1104,31782.0,31777.0,0.13632608]
[1609853864144,0.1104,31782.0,31781.0,3.8357]
[1609853865446,0.24672608,31782.0,31781.0,3.8357]
[1609853865745,0.24672608,31782.0,31770.0,0.13632608]
[1609853865944,0.24672608,31782.0,31770.0,5.25022608]
[1609853866745,0.24672608,31782.0,31770.0,0.13632608]
[1609853867548,0.13632608,31771.0,31770.0,0.13632608]
[1609853867747,0.27613608,31771.0,31770.0,0.13632608]
[1609853869857,0.27613608,31771.0,31770.0,5.06242608]
[1609853871451,0.27613608,31771.0,31770.0,0.13632608]
[1609853875961,0.27613608,31771.0,31770.0,0.78962608]
[1609853878664,0.1104,31782.0,31770.0,0.13632608]
[1609853878863,0.13205,31773.0,31770.0,0.13632608]
[1609853879362,0.26837608,31773.0,31770.0,0.13632608]
[1609853884468,0.26837608,31773.0,31771.0,4.4222]
[1609853886873,0.26837608,31773.0,31770.0,0.13632608]
[1609853887271,0.26837608,31773.0,31760.0,0.04]
[1609853887472,0.13632608,31761.0,31760.0,0.04]
[1609853889473,0.13632608,31761.0,31760.0,3.6223]
[1609853889873,0.27503608,31761.0,31760.0,3.6223]
[1609853892177,0.27503608,31761.0,31760.0,0.04]
[1609853894577,0.27503608,31761.0,31760.0,4.4894]
[1609853896480,0.27503608,31761.0,31760.0,0.04]
[1609853900379,0.27503608,31761.0,31760.0,0.5442]
[1609853903180,0.27503608,31761.0,31760.0,0.04]
[1609853904383,0.27503608,31761.0,31760.0,4.3046]
[1609853907085,0.27503608,31761.0,31760.0,0.04]
[1609853919406,0.27503608,31761.0,31760.0,4.0326]
[1609853921506,0.27503608,31761.0,31760.0,0.04]
[1609853927313,5.33303608,31761.0,31760.0,0.04]
[1609853931022,0.27503608,31761.0,31760.0,0.04]
[1609853931822,0.27503608,31761.0,31760.0,0.17632608]
[1609853945041,0.27503608,31761.0,31760.0,0.27202608]
[1609853945244,0.27503608,31761.0,31760.0,0.17632608]
[1609853946543,0.27503608,31761.0,31760.0,0.27172608]
[1609853946743,0.27503608,31761.0,31760.0,0.17632608]
[1609853950546,0.23503608,31761.0,31760.0,0.13632608]
[1609853953151,5.14443608,31761.0,31760.0,0.13632608]
[1609853955553,0.23503608,31761.0,31760.0,0.13632608]
[1609853957558,4.32553608,31761.0,31760.0,0.13632608]
[1609853958558,0.23503608,31761.0,31760.0,0.13632608]
[1609853959356,0.78193608,31761.0,31760.0,0.13632608]
[1609853960357,0.78193608,31761.0,31755.0,0.0942]
[1609853961960,0.68561,31761.0,31757.0,0.13632608]
[1609853963963,0.13632608,31760.0,31757.0,0.13632608]
[1609853969168,4.7548,31758.0,31757.0,0.13632608]
[1609853969570,0.13632608,31760.0,31757.0,0.13632608]
[1609853969868,0.13632608,31760.0,31759.0,3.7521]
[1609853971671,0.13632608,31760.0,31757.0,0.13632608]
[1609853971872,0.13632608,31760.0,31758.0,5.0814]
[1609853974074,0.13632608,31760.0,31757.0,0.13632608]
[1609853975481,0.13871,31761.0,31752.0,3.9976]
[1609853975877,4.7713432,31763.0,31752.0,3.9976]
[1609853976077,4.7713432,31763.0,31760.0,0.13632608]
[1609853978081,0.13632608,31761.0,31760.0,0.13632608]
[1609853978478,0.27279608,31761.0,31760.0,0.13632608]
[1609853980279,0.27279608,31761.0,31760.0,5.09072608]
[1609853980980,0.13647,31761.0,31760.0,5.09072608]
[1609853981181,0.11247,31761.0,31760.0,5.09072608]
[1609853981481,4.32e-05,31763.0,31760.0,0.13632608]
[1609853981682,0.59724005,31765.0,31762.0,4.6185]
[1609853982081,0.58344005,31765.0,31762.0,4.6185]
[1609853982283,0.58344005,31765.0,31764.0,0.13632608]
[1609853982482,0.54424005,31765.0,31764.0,0.13632608]
[1609853983082,0.48914005,31765.0,31764.0,0.13632608]
[1609853983482,0.48914005,31765.0,31764.0,0.23152608]
[1609853984784,0.46164005,31765.0,31764.0,0.23152608]
[1609853984983,0.43394005,31765.0,31764.0,0.23152608]
[1609853985285,0.27994005,31765.0,31764.0,0.23152608]
[1609853985485,0.22624005,31765.0,31764.0,0.23152608]
[1609853985686,1.09497059,31773.0,31764.0,0.23152608]
[1609853985890,0.69296773,31769.0,31764.0,0.23152608]
[1609853986286,0.69296773,31769.0,31768.0,0.13632608]
[1609853987489,0.69161355,31789.0,31769.0,4.3814]
[1609853988390,0.69161355,31789.0,31788.0,0.13632608]
[1609853990190,4.3836,31791.0,31788.0,0.13632608]
[1609853994297,0.13632608,31792.0,31788.0,0.13632608]
[1609853994497,0.13632608,31792.0,31788.0,4.94162608]
[1609853995800,0.68909207,31800.0,31788.0,4.94162608]
[1609853995998,0.68898489,31803.0,31788.0,4.94162608]
[1609853996398,0.68898489,31803.0,31802.0,0.13632608]
[1609853996600,0.13632608,31805.0,31802.0,0.13632608]
[1609854000705,5.1859,31803.0,31802.0,0.13632608]
[1609854000906,5.32688,31803.0,31802.0,0.13632608]
[1609854002207,0.14098,31803.0,31802.0,0.13632608]
[1609854003007,0.14098,31803.0,31795.0,4.8155]
[1609854004311,0.14098,31803.0,31802.0,0.13632608]
[1609854005610,0.14098,31803.0,31802.0,4.46402608]
[1609854006010,0.13632608,31805.0,31802.0,4.46402608]
[1609854009413,0.13632608,31805.0,31802.0,0.13632608]
[1609854014020,0.13632608,31805.0,31799.0,4.8947]
[1609854014220,0.25706608,31805.0,31799.0,4.8947]
[1609854014422,0.13632608,31800.0,31796.0,0.13632608]
[1609854015223,0.13632608,31800.0,31799.0,5.0326]
[1609854017724,0.13632608,31800.0,31796.0,0.13632608]
[1609854019427,5.08322608,31800.0,31796.0,0.13632608]
[1609854022933,5.08322608,31800.0,31788.0,4.4658]
[1609854023133,0.13632608,31800.0,31775.0,0.09985]
[1609854023333,3.6831,31789.0,31775.0,0.09985]
[1609854023732,3.79088,31789.0,31772.0,4.5742]
[1609854024533,3.79088,31789.0,31778.0,0.13632608]
[1609854024733,0.10778,31789.0,31778.0,0.13632608]
[1609854024933,3.6166,31779.0,31778.0,0.13632608]
[1609854025133,3.73858,31779.0,31754.0,2.06226275]
[1609854025334,0.12198,31779.0,31754.0,2.06226275]
[1609854025534,0.12198,31779.0,31768.0,4.604]
[1609854025734,0.12198,31779.0,31752.0,2.15716463]
[1609854026133,0.12198,31779.0,31763.0,3.5548]
[1609854026534,0.12198,31779.0,31763.0,3.69112608]
[1609854026535,0.13632608,31764.0,31763.0,3.69112608]
[1609854026735,0.13632608,31764.0,31763.0,0.13632608]
[1609854027535,0.70802608,31764.0,31763.0,0.13632608]
[1609854029635,0.70802608,31764.0,31747.0,4.0916]
[1609854029835,0.13632608,31764.0,31737.0,2.25973572]
[1609854030236,3.7518,31753.0,31737.0,2.25973572]
[1609854030439,3.7518,31753.0,31752.0,0.13632608]
[1609854030637,0.11642,31755.0,31752.0,0.13632608]
[1609854031336,0.80322,31755.0,31752.0,0.13632608]
[1609854031636,0.11642,31755.0,31752.0,0.13632608]
[1609854032036,4.5548,31753.0,31752.0,0.13632608]
[1609854032437,4.69112608,31753.0,31752.0,0.13632608]
[1609854033137,0.11642,31755.0,31752.0,0.13632608]
[1609854033736,0.11642,31755.0,31753.0,0.0935]
[1609854033937,0.1428,31767.0,31753.0,0.0935]
[1609854034137,4.5838,31768.0,31753.0,0.0935]
[1609854034538,4.5838,31768.0,31767.0,0.13632608]
[1609854034738,0.2983,31778.0,31767.0,0.13632608]
[1609854034938,3.5292,31775.0,31767.0,0.13632608]
[1609854035139,4.10188928,31775.0,31767.0,0.13632608]
[1609854035338,0.57268928,31775.0,31767.0,0.13632608]
[1609854035540,0.57268928,31775.0,31770.0,3.9708]
[1609854036239,0.57219235,31786.0,31770.0,3.9708]
[1609854036440,0.57219235,31786.0,31781.0,0.13632608]
[1609854036641,0.57225161,31792.0,31781.0,0.13632608]
[1609854036840,0.57225161,31792.0,31782.0,4.03]
[1609854037341,0.85745343,31794.0,31782.0,4.03]
[1609854038441,0.13632608,31783.0,31782.0,4.03]
[1609854038640,0.13632608,31783.0,31781.0,0.13632608]
[1609854038842,0.28220608,31783.0,31781.0,0.13632608]
[1609854039441,0.14588,31783.0,31781.0,0.13632608]
[1609854042343,0.14588,31783.0,31782.0,0.0929]
[1609854042945,4.62678,31783.0,31782.0,0.0929]
[1609854044146,4.62678,31783.0,31781.0,0.13632608]
[1609854044447,0.13632608,31782.0,31781.0,0.13632608]
[1609854044847,4.30082608,31782.0,31781.0,0.13632608]
[1609854046949,4.30082608,31782.0,31764.0,0.0949]
[1609854048456,0.13632608,31776.0,31775.0,0.13632608]
[1609854049553,0.14588,31783.0,31775.0,0.13632608]
[1609854049953,5.1348,31785.0,31775.0,0.13632608]
[1609854050353,5.1348,31785.0,31775.0,0.23162608]
[1609854050554,5.1348,31785.0,31782.0,0.13632608]
[1609854050754,0.5728424,31792.0,31783.0,5.0666]
[1609854051356,0.57282787,31793.0,31783.0,5.0666]
[1609854051955,0.85816567,31794.0,31783.0,5.0666]
[1609854052454,0.13632608,31784.0,31783.0,5.0666]
[1609854052755,0.13632608,31784.0,31782.0,0.13632608]
[1609854054057,0.13632608,31784.0,31775.0,5.2928]
[1609854054258,0.13632608,31784.0,31775.0,0.0931]
[1609854054457,4.1402,31781.0,31775.0,0.0931]
[1609854054657,0.13632608,31776.0,31775.0,0.0931]
[1609854055958,0.13632608,31776.0,31775.0,4.0585]
[1609854056258,0.13632608,31776.0,31775.0,3.9654]
[1609854057060,0.13463,31786.0,31775.0,3.9654]
[1609854057261,0.13463,31786.0,31775.0,4.0587]
[1609854058466,0.57299609,31793.0,31785.0,0.13632608]
[1609854059568,0.2852,31794.0,31785.0,0.13632608]
[1609854060468,0.2852,31794.0,31790.0,0.13632608]
[1609854060667,4.4377,31795.0,31790.0,0.13632608]
[1609854061469,4.4377,31795.0,31775.0,4.0587]
[1609854061668,0.14371,31795.0,31775.0,0.0933]
[1609854062068,4.1711,31781.0,31775.0,0.0933]
[1609854062670,4.1711,31781.0,31780.0,0.13632608]
[1609854064571,4.30742608,31781.0,31780.0,0.13632608]
[1609854065770,0.13632608,31781.0,31780.0,0.13632608]
[1609854068975,0.86152608,31781.0,31780.0,0.13632608]
[1609854070878,0.13632608,31781.0,31780.0,0.13632608]
[1609854076482,0.13632608,31781.0,31780.0,4.63082608]
[1609854077887,0.13632608,31781.0,31780.0,0.13632608]
[1609854081686,5.01252608,31781.0,31780.0,0.13632608]
[1609854083389,0.13632608,31781.0,31780.0,0.13632608]
[1609854089295,0.13632608,31781.0,31761.0,0.0956]
[1609854089496,0.13632608,31781.0,31759.0,2.16208468]
[1609854089695,0.13632608,31781.0,31759.0,2.06658468]
[1609854089896,4.4927,31768.0,31759.0,2.06658468]
[1609854090096,4.60011,31768.0,31759.0,2.06658468]
[1609854090296,0.10741,31768.0,31759.0,2.06658468]
[1609854090698,0.10741,31768.0,31762.0,0.13632608]
[1609854092697,0.13632608,31763.0,31762.0,0.13632608]
[1609854095000,4.40422608,31763.0,31762.0,0.13632608]
[1609854095402,4.40422608,31763.0,31745.0,2.16386896]
[1609854096002,0.13632608,31763.0,31745.0,2.16386896]
[1609854096202,0.13632608,31763.0,31750.0,3.662]
[1609854096804,0.13632608,31758.0,31756.0,0.13632608]
[1609854097004,0.13632608,31758.0,31757.0,0.6241]
[1609854099105,0.13632608,31758.0,31756.0,0.13632608]
[1609854108819,0.09094,31760.0,31756.0,0.13632608]
[1609854109019,0.13632608,31765.0,31757.0,0.0937]
[1609854109218,0.10741,31768.0,31757.0,0.0937]
[1609854109418,0.57445151,31772.0,31757.0,0.0937]
[1609854109819,0.57445151,31772.0,31762.0,4.937]
[1609854110019,0.57445151,31772.0,31763.0,0.0951]
[1609854110919,0.57445151,31772.0,31771.0,0.13632608]
[1609854112021,0.01931897,31774.0,31771.0,0.13632608]
[1609854112421,0.01931897,31774.0,31773.0,4.6044]
[1609854112720,0.01931897,31774.0,31771.0,0.13632608]
[1609854114225,0.13632608,31777.0,31771.0,0.13632608]
[1609854114827,0.13632608,31772.0,31771.0,0.13632608]
[1609854116226,0.13632608,31772.0,31762.0,4.0013]
[1609854116927,0.09524,31778.0,31767.0,0.13632608]
[1609854118229,4.0556,31782.0,31767.0,0.13632608]
[1609854118830,0.13632608,31768.0,31767.0,0.13632608]
[1609854121132,0.12987,31774.0,31767.0,0.13632608]
[1609854121533,0.12987,31774.0,31771.0,4.9015]
[1609854122834,0.13632608,31772.0,31771.0,4.9015]
[1609854124437,0.13632608,31772.0,31767.0,0.13632608]
[1609854124834,0.13632608,31768.0,31767.0,0.13632608]
[1609854125434,0.13632608,31768.0,31767.0,3.70512608]
[1609854128839,0.13632608,31772.0,31767.0,3.70512608]
[1609854129038,0.13632608,31772.0,31768.0,0.0939]
[1609854129440,0.12987,31774.0,31767.0,0.13632608]
[1609854130041,3.8465,31781.0,31767.0,0.13632608]
[1609854130941,3.8465,31781.0,31774.0,0.13632608]
[1609854131241,0.01932524,31784.0,31774.0,0.13632608]
[1609854131641,0.01932524,31784.0,31778.0,4.7974]
[1609854132641,0.1771,31785.0,31778.0,4.7974]
[1609854132842,0.14543,31786.0,31781.0,0.13632608]
[1609854133042,0.5939757,31790.0,31781.0,0.13632608]
[1609854134244,0.29983808,31793.0,31781.0,0.13632608]
[1609854134842,0.29983808,31793.0,31785.0,0.13632608]
[1609854135244,0.2805,31793.0,31785.0,0.13632608]
[1609854136844,0.2805,31793.0,31789.0,4.2331]
[1609854137043,0.7373752,31795.0,31789.0,4.2331]
[1609854137445,0.14371,31795.0,31789.0,4.2331]
[1609854137944,0.59366749,31796.0,31789.0,4.2331]
[1609854138946,0.23058608,31790.0,31789.0,4.2331]
[1609854140954,0.23058608,31790.0,31789.0,4.36942608]
[1609854143859,0.23058608,31790.0,31789.0,0.13632608]
[1609854146563,0.23058608,31790.0,31789.0,4.45572608]
[1609854148065,0.23058608,31790.0,31789.0,0.13632608]
[1609854148265,3.84068608,31790.0,31789.0,0.13632608]
[1609854148967,3.84068608,31790.0,31784.0,0.13632608]
[1609854150868,0.23058608,31790.0,31784.0,0.13632608]
[1609854151068,0.13632608,31785.0,31784.0,0.13632608]
[1609854154373,0.7168,31785.0,31784.0,0.13632608]
[1609854155472,0.23058608,31790.0,31784.0,0.13632608]
[1609854157074,0.23058608,31790.0,31789.0,0.13632608]
[1609854157275,0.90868608,31790.0,31778.0,4.96]
[1609854158977,0.77236,31790.0,31783.0,0.13632608]
[1609854159180,0.09426,31790.0,31783.0,0.13632608]
[1609854159679,4.2952,31792.0,31783.0,0.13632608]
[1609854160981,0.13632608,31784.0,31783.0,0.13632608]
[1609854161382,0.27783608,31784.0,31783.0,0.13632608]
[1609854162183,5.18173608,31784.0,31783.0,0.13632608]
[1609854162583,5.18173608,31784.0,31775.0,0.0939]
[1609854162984,5.04541,31784.0,31778.0,0.13632608]
[1609854164989,0.13632608,31779.0,31778.0,0.13632608]
[1609854165991,0.66632608,31779.0,31771.0,4.3449]
[1609854166590,0.13632608,31779.0,31764.0,0.0936]
[1609854166794,0.13632608,31779.0,31774.0,3.6461]
[1609854166992,0.13632608,31775.0,31774.0,3.6461]
[1609854167392,0.14151,31784.0,31774.0,3.6461]
[1609854167591,0.01934029,31789.0,31774.0,3.6461]
[1609854167792,0.01934029,31789.0,31775.0,0.093]
[1609854167992,0.59401658,31790.0,31775.0,0.093]
[1609854168695,0.59401658,31790.0,31774.0,3.6461]
[1609854168894,0.01936109,31792.0,31774.0,3.6461]
[1609854169094,0.01936109,31792.0,31782.0,0.13632608]
[1609854170998,0.13632608,31783.0,31782.0,0.13632608]
[1609854171198,0.26517608,31783.0,31782.0,0.13632608]
[1609854171800,0.26517608,31783.0,31782.0,5.11292608]
[1609854174200,0.26517608,31783.0,31782.0,0.13632608]
[1609854177007,0.26517608,31783.0,31782.0,4.54402608]
[1609854179306,0.26517608,31783.0,31782.0,0.13632608]
[1609854181908,0.26517608,31783.0,31782.0,3.96832608]
[1609854184112,0.26517608,31783.0,31782.0,0.13632608]
[1609854185112,0.26517608,31783.0,31782.0,0.23112608]
[1609854185312,0.26517608,31783.0,31782.0,0.13632608]
[1609854185914,4.66777608,31783.0,31782.0,0.13632608]
[1609854186713,0.26517608,31783.0,31782.0,0.13632608]
[1609854186913,0.26517608,31783.0,31782.0,4.012]
[1609854188916,0.26517608,31783.0,31775.0,0.13632608]
[1609854189116,0.13632608,31776.0,31775.0,0.13632608]
[1609854190818,0.77042608,31776.0,31775.0,0.13632608]
[1609854191217,0.77042608,31776.0,31764.0,0.0936]
[1609854191416,0.13632608,31776.0,31764.0,0.0936]
[1609854191617,4.7298,31773.0,31764.0,0.0936]
[1609854191818,0.13632608,31776.0,31770.0,4.6964]
[1609854193319,0.13632608,31771.0,31770.0,4.6964]
[1609854194321,0.13632608,31771.0,31768.0,0.13632608]
[1609854196424,4.6541,31769.0,31768.0,0.13632608]
[1609854196824,0.13632608,31771.0,31768.0,0.13632608]
[1609854197025,0.13632608,31771.0,31770.0,4.7389]
[1609854199432,0.13632608,31771.0,31768.0,0.13632608]
[1609854199831,0.13632608,31771.0,31769.0,0.095]
[1609854200032,0.13632608,31771.0,31768.0,0.13632608]
[1609854202032,0.13632608,31771.0,31770.0,5.2142]
[1609854203034,0.1386414,31783.0,31770.0,5.2142]
[1609854203234,0.1386414,31783.0,31775.0,0.13632608]
[1609854204137,0.12885,31783.0,31775.0,0.13632608]
[1609854204437,0.0097349,31784.0,31775.0,0.13632608]
[1609854205038,0.02901474,31785.0,31775.0,0.13632608]
[1609854205240,0.13632608,31776.0,31775.0,0.13632608]
[1609854207140,0.13632608,31776.0,31775.0,4.31202608]
[1609854209541,0.13632608,31776.0,31775.0,0.13632608]
[1609854211145,5.24492608,31776.0,31775.0,0.13632608]
[1609854211945,0.13632608,31776.0,31775.0,0.13632608]
[1609854212145,0.13632608,31776.0,31775.0,3.91762608]
[1609854213550,0.14529,31780.0,31775.0,3.91762608]
[1609854213750,0.00978949,31783.0,31775.0,3.91762608]
[1609854214349,0.00978949,31783.0,31776.0,0.0942]
[1609854214549,0.02914888,31784.0,31775.0,3.91762608]
[1609854215150,0.02917193,31785.0,31775.0,0.13632608]
[1609854215349,4.7653,31784.0,31771.0,4.2632]
[1609854215549,4.87121,31784.0,31771.0,4.2632]
[1609854216354,4.9135,31777.0,31768.0,0.093]
[1609854216554,4.9135,31777.0,31764.0,6.18005566]
[1609854216952,0.10591,31784.0,31771.0,3.8842]
[1609854217356,0.11570145,31784.0,31781.0,0.13632608]
[1609854217855,0.11570145,31784.0,31781.0,4.59012608]
[1609854218257,0.57696293,31782.0,31781.0,4.59012608]
[1609854218956,0.01941837,31782.0,31781.0,4.59012608]
[1609854219355,0.15574445,31782.0,31781.0,0.13632608]
[1609854220457,0.78584445,31782.0,31781.0,0.13632608]
[1609854220858,1.34341389,31782.0,31781.0,0.13632608]
[1609854221958,0.71331389,31782.0,31781.0,0.13632608]
[1609854223159,1.86853252,31782.0,31781.0,0.13632608]
[1609854223759,1.40574048,31782.0,31781.0,0.13632608]
[1609854225061,1.86853936,31782.0,31781.0,0.13632608]
[1609854225262,6.09913936,31782.0,31781.0,0.13632608]
[1609854226864,1.86853936,31782.0,31781.0,0.13632608]
[1609854227866,0.71331389,31782.0,31781.0,0.13632608]
[1609854230272,0.57698781,31782.0,31781.0,0.13632608]
[1609854230672,0.00980398,31782.0,31781.0,0.13632608]
[1609854231374,0.68280697,31784.0,31781.0,0.13632608]
[1609854231375,3.85771,31784.0,31781.0,0.13632608]
[1609854231775,0.10591,31784.0,31781.0,0.13632608]
[1609854231974,0.00980543,31784.0,31781.0,0.13632608]
[1609854232374,0.00980543,31784.0,31783.0,3.8346]
[1609854233875,0.00980543,31784.0,31781.0,0.13632608]
[1609854234074,3.86540543,31784.0,31781.0,0.13632608]
[1609854234276,4.01117543,31784.0,31765.0,2.11252212]
[1609854234475,0.15557543,31784.0,31765.0,2.11252212]
[1609854235275,1.5,31783.0,31766.0,0.13632608]
[1609854235474,0.0933,31782.0,31766.0,0.13632608]
[1609854235676,5.2448,31767.0,31765.0,2.11252212]
[1609854235876,0.0932,31777.0,31765.0,2.11252212]
[1609854236076,4.1948,31766.0,31765.0,2.11252212]
[1609854236477,4.1948,31766.0,31759.0,2.11250655]
[1609854236676,0.12143,31767.0,31759.0,2.11250655]
[1609854236879,4.0993,31760.0,31759.0,2.11250655]
[1609854237079,4.21436,31760.0,31759.0,2.11250655]
[1609854237279,4.35068608,31760.0,31759.0,2.11250655]
[1609854237678,0.25138608,31760.0,31759.0,2.11250655]
[1609854237879,0.25138608,31760.0,31756.0,2.44087868]
[1609854237880,0.25138608,31760.0,31756.0,0.13632608]
[1609854238980,0.25138608,31760.0,31757.0,0.0956]
[1609854239180,0.25138608,31760.0,31756.0,0.13632608]
[1609854239781,0.11506,31760.0,31756.0,0.13632608]
[1609854241482,0.13632608,31758.0,31756.0,0.13632608]
[1609854247086,0.13575324,31758.0,31756.0,0.13632608]
[1609854252787,0.13575324,31758.0,31738.0,0.0941]
[1609854252987,0.13575324,31758.0,31743.0,3.7003]
[1609854253587,0.11506,31760.0,31752.0,0.13632608]
[1609854253787,0.00973966,31765.0,31752.0,0.13632608]
[1609854253991,0.00973966,31765.0,31752.0,0.70282608]
[1609854254586,0.59238499,31766.0,31752.0,0.70282608]
[1609854254587,0.00974198,31766.0,31752.0,0.70282608]
[1609854255290,0.12143,31767.0,31752.0,0.70282608]
[1609854255489,4.42995137,31768.0,31759.0,0.13632608]
[1609854255688,0.02905137,31768.0,31759.0,0.13632608]
[1609854256689,0.02905137,31768.0,31753.0,4.1039]
[1609854256888,0.12613137,31768.0,31753.0,4.1039]
[1609854257089,0.7342,31760.0,31753.0,4.1039]
[1609854257391,0.85461,31760.0,31753.0,4.1039]
[1609854257590,0.85461,31760.0,31754.0,0.13632608]
[1609854259491,0.13632608,31755.0,31754.0,0.13632608]
[1609854262900,0.12041,31760.0,31759.0,4.7704]
[1609854263300,0.2785,31769.0,31759.0,4.7704]
[1609854263501,0.2785,31769.0,31766.0,0.13632608]
[1609854263700,0.2785,31769.0,31768.0,4.6575]
[1609854263900,0.95611686,31779.0,31768.0,4.6575]
[1609854264101,0.00975007,31772.0,31768.0,4.6575]
[1609854264602,0.00975002,31774.0,31768.0,4.6575]
[1609854265403,0.00975002,31774.0,31770.0,0.13632608]
[1609854266003,0.02905776,31775.0,31770.0,0.13632608]
[1609854267405,0.1771,31778.0,31770.0,0.13632608]
[1609854267603,0.13632608,31775.0,31774.0,0.13632608]
[1609854267805,0.25414608,31775.0,31774.0,0.13632608]
[1609854268205,0.25414608,31775.0,31774.0,4.14502608]
[1609854269706,0.11782,31775.0,31774.0,4.14502608]
[1609854269906,0.01442,31775.0,31774.0,4.14502608]
[1609854270310,0.15552162,31784.0,31774.0,4.14502608]
[1609854270507,0.07432162,31784.0,31774.0,4.14502608]
[1609854270707,0.07112162,31784.0,31774.0,4.14502608]
[1609854270910,0.05862162,31784.0,31774.0,4.14502608]
[1609854271307,0.58997007,31785.0,31775.0,0.0948]
[1609854271507,0.58997007,31785.0,31784.0,0.86862608]
[1609854272107,0.37977007,31785.0,31784.0,0.86862608]
[1609854272508,0.37347007,31785.0,31784.0,0.86862608]
[1609854272709,0.30437007,31785.0,31784.0,0.96172608]
[1609854273110,0.28867007,31785.0,31784.0,0.96172608]
[1609854273309,0.24127007,31785.0,31784.0,0.96172608]
[1609854273509,0.01930285,31790.0,31784.0,0.86862608]
[1609854274509,0.13632608,31798.0,31784.0,0.86862608]
[1609854274709,0.13632608,31798.0,31785.0,0.0944]
[1609854275611,0.13632608,31798.0,31797.0,0.13632608]
[1609854277214,0.0192644,31806.0,31797.0,0.13632608]
[1609854277414,0.0192644,31806.0,31801.0,4.1772]
[1609854277614,0.0192644,31806.0,31805.0,0.13632608]
[1609854278015,0.0192644,31806.0,31805.0,4.37122608]
[1609854278218,0.1771,31807.0,31805.0,4.37122608]
[1609854278815,0.01924356,31809.0,31805.0,4.37122608]
[1609854279514,0.13632608,31806.0,31805.0,4.37122608]
[1609854279915,0.24046608,31806.0,31805.0,4.37122608]
[1609854280915,0.24046608,31806.0,31805.0,0.13632608]
[1609854281616,0.83836608,31806.0,31799.0,4.4217]
[1609854281816,0.24046608,31806.0,31770.0,2.07197611]
[1609854282017,0.0951,31805.0,31770.0,2.07197611]
[1609854282216,5.16186608,31806.0,31778.0,4.4104]
[1609854282417,5.16186608,31806.0,31779.0,0.0935]
[1609854283017,5.16186608,31806.0,31778.0,4.5046]
[1609854283617,5.02554,31806.0,31796.0,0.13632608]
[1609854285521,0.13632608,31797.0,31796.0,0.13632608]
[1609854286121,0.23898608,31797.0,31796.0,0.13632608]
[1609854286320,0.23898608,31797.0,31785.0,0.094]
[1609854286520,0.23898608,31797.0,31778.0,0.0942]
[1609854286720,0.23898608,31797.0,31785.0,3.6996]
[1609854287622,0.23898608,31797.0,31796.0,0.13632608]
[1609854288624,0.23898608,31797.0,31796.0,5.30712608]
[1609854290231,0.10266,31797.0,31796.0,5.30712608]
[1609854291329,0.10414,31806.0,31796.0,5.30712608]
[1609854291529,0.10414,31806.0,31804.0,0.13632608]
[1609854291730,0.01918097,31809.0,31804.0,0.13632608]
[1609854292231,0.19628013,31810.0,31804.0,0.13632608]
[1609854293131,0.19628013,31810.0,31807.0,4.988]
[1609854293332,0.1771,31810.0,31807.0,4.988]
[1609854293529,0.1771,31810.0,31809.0,0.13632608]
[1609854293930,0.01916562,31816.0,31809.0,0.13632608]
[1609854294632,0.2995,31817.0,31809.0,0.13632608]
[1609854295532,0.13632608,31810.0,31809.0,0.13632608]
[1609854296233,0.25764608,31810.0,31809.0,0.13632608]
[1609854297736,0.12132,31810.0,31809.0,0.13632608]
[1609854297936,0.12132,31810.0,31809.0,4.84702608]
[1609854301340,0.13632608,31824.0,31809.0,4.84702608]
[1609854301738,0.13632608,31824.0,31823.0,0.13632608]
[1609854302139,0.13632608,31824.0,31801.0,0.0942]
[1609854302140,0.13632608,31824.0,31799.0,0.0932]
[1609854302340,0.13632608,31824.0,31808.0,5.1519]
[1609854302539,0.24590608,31824.0,31799.0,0.0932]
[1609854302739,0.24590608,31824.0,31817.0,4.0899]
[1609854303641,0.13632608,31818.0,31817.0,4.0899]
[1609854304643,0.13632608,31818.0,31800.0,4.2678]
[1609854305644,0.13632608,31818.0,31817.0,0.13632608]
[1609854305843,0.13632608,31818.0,31817.0,3.72692608]
[1609854311247,0.13632608,31818.0,31801.0,0.0938]
[1609854311549,0.13632608,31818.0,31799.0,4.2995]
[1609854311748,4.8826,31820.0,31809.0,0.13632608]
[1609854313648,0.13632608,31810.0,31809.0,0.13632608]
[1609854314050,0.24245608,31810.0,31809.0,0.13632608]
[1609854315666,0.24245608,31810.0,31802.0,0.13632608]
[1609854316055,3.6046,31803.0,31802.0,0.13632608]
[1609854316256,3.6046,31803.0,31785.0,4.0949]
[1609854316453,3.73311,31803.0,31785.0,4.0949]
[1609854317656,3.73311,31803.0,31797.0,0.13632608]
[1609854317854,0.12851,31803.0,31797.0,0.13632608]
[1609854318456,4.52131,31803.0,31797.0,0.13632608]
[1609854319656,0.13632608,31798.0,31797.0,0.13632608]
[1609854322060,0.12851,31803.0,31797.0,0.13632608]
[1609854322261,4.1944,31809.0,31797.0,0.13632608]
[1609854322461,4.1944,31809.0,31797.0,0.85282608]